Cogmind - Beta 14 *** ADVENTURER MODE // 2024.09.02 @ 22:57:35 Player: Zaanix Result: Destroyed by D-53 Grenadier with Mini Grenade Launcher Performance ------------- Evolutions (0) 0 Regions Visited (4) 800 Robots Destroyed (19) 95 Value Destroyed (416) 416 Prototype IDs (2) 40 Alien Tech Used (0) 0 Bonus (0) 0 TOTAL SCORE: 1351 Bonus ------- None Cogmind --------- Core Integrity 0/250 Matter 242/300 Energy 172/265 System Corruption 0% Temperature Cool (0) Movement Treading (160) Location -9/Mines Parts ------- > --- POWER (1) -------- Improved Ion Engine > --- PROPULSION (2) --- Light Treads Light Treads > --- UTILITY (2) ------ Large Storage Unit Signal Interpreter > --- WEAPON (2) ------- Heavy Assault Rifle > --- INVENTORY (15) --- Improved Ion Engine Light Treads High-capacity Matter Pod (200) Targeting Computer Improved Targeting Computer Assault Rifle Assault Rifle Heavy Assault Rifle Grenade Launcher Mining Laser Peak State ------------ > --- POWER ------------ Improved Ion Engine > --- PROPULSION ------- Light Treads Light Treads > --- UTILITY ---------- Large Storage Unit Signal Interpreter > --- WEAPON ----------- Assault Rifle Heavy Assault Rifle > --- INVENTORY -------- Improved Ion Engine Light Treads High-capacity Matter Pod Targeting Computer Improved Targeting Computer Assault Rifle Assault Rifle Heavy Assault Rifle Grenade Launcher Mining Laser [Rating: 10] Favorites ----------- Power Light Ion Engine Engine Light Ion Engine Propulsion Light Treads Treads Light Treads Utility Signal Interpreter Storage Large Storage Unit Processor Signal Interpreter Weapon Assault Rifle Energy Gun Small Laser Ballistic Gun Assault Rifle Build | -11 -10 -10 -10 -9 ------- Run | Yrd Mat Min Exi Min Slots Evolved . | . . . . . Power . | . . . . . Propulsion . | . . . . . Utility . | . . . . . Weapon . | . . . . . Parts Attached 20 | 6 4 3 . 7 Power 4 | 1 . 1 . 2 Engine 4 | 1 . 1 . 2 Core . | . . . . . Reactor . | . . . . . Propulsion 5 | 2 . 2 . 1 Treads 5 | 2 . 2 . 1 Leg . | . . . . . Wheel . | . . . . . Hover . | . . . . . Flight . | . . . . . Utility 3 | 1 2 . . . Device . | . . . . . Storage 2 | 1 1 . . . Processor 1 | . 1 . . . Hackware . | . . . . . Protection . | . . . . . Artifact . | . . . . . Weapon 8 | 2 2 . . 4 Energy Gun 1 | 1 . . . . Energy Cannon . | . . . . . Ballistic Gun 7 | 1 2 . . 4 Ballistic Cannon . | . . . . . Launcher . | . . . . . Special Weapon . | . . . . . Impact Weapon . | . . . . . Slashing Weapon . | . . . . . Piercing Weapon . | . . . . . Special Melee Weapon . | . . . . . Unidentified Prototypes . | . . . . . Parts Lost 5 | . . . . 5 Power 2 | . . . . 2 Propulsion 1 | . . . . 1 Utility . | . . . . . Weapon 2 | . . . . 2 Highest Loss Streak 4 | . . . . 4 To Critical Strikes . | . . . . . Average Slot Usage (%) 99 | . 97 100 100 97 Engine 13 | . 14 14 14 13 Treads 27 | . 28 28 28 27 Storage 14 | . 14 14 14 14 Processor 13 | . 12 14 14 14 Ballistic Gun 27 | . 25 28 28 27 Peak Build Rating 10 | 6 8 8 8 10 Average Rating 7 | 4 7 8 8 7 On Entrance 6 | . 6 8 8 8 Naked Turns . | . . . . . Heaviest Build 32 | 10 27 27 27 32 Greatest Support 40 | 40 40 40 40 40 Greatest Overweight (x) . | . . . . . Average Overweight (x) . | . . . . . Largest Inventory Capacity 15 | 8 15 15 15 15 Average Capacity 14 | 7 13 15 15 15 Most Carried 15 | 6 14 15 15 15 Average Carried 13 | 4 11 14 15 12 Final Capacity 15 | 8 15 15 15 15 Final Carried 15 | 6 13 15 15 10 Class Distribution -------------------- 100% | Mutant Dominant Class ---------------- Mutant | -10/Materials Mutant | -10/Mines Mutant | -10/Exiles Mutant | -9/Mines Resources | -11 -10 -10 -10 -9 ----------- Run | Yrd Mat Min Exi Min Matter Collected 789 | 208 247 257 . 77 Remotely . | . . . . . Salvage Created 494 | . 198 195 . 101 Parts 43 | . 16 22 . 5 Haulers Intercepted . | . . . . . Recyclers Shooed . | . . . . . Parts Field Recycled . | . . . . . Retrieved Matter . | . . . . . Parts Self-Destructed . | . . . . . Prevented . | . . . . . Kills | -11 -10 -10 -10 -9 ------- Run | Yrd Mat Min Exi Min Combat Hostiles Destroyed 18 | . 8 7 . 3 Guns 18 | . 8 7 . 3 Classes Destroyed 6 | . 3 1 . 2 Worker 1 | . 1 . . . Swarmer 11 | . 6 5 . . Grunt 3 | . 2 . . 1 Duelist 1 | . . . . 1 Sentry 2 | . . 2 . . Demolisher 1 | . . . . 1 Best Kill Streak 4 | . 4 3 . 2 Combat Bots Only 3 | . 3 3 . 2 Max Kills in Single Turn 1 | . 1 1 . 1 Gunslinging . | . . . . . Exploded . | . . . . . Melee . | . . . . . Uniques/NPCs Destroyed . | . . . . . Combat | -11 -10 -10 -10 -9 -------- Run | Yrd Mat Min Exi Min Hostile Shots Fired 97 | . 30 34 . 33 Missed 22 | . 6 12 . 4 Damage Taken 1154 | . 175 147 . 832 Core 258 | . 30 36 . 192 Absorbed by Shields . | . . . . . Ignored by Resistances 331 | . 58 47 . 226 Core Remaining (%) 100 | 100 . . . . Volleys Fired 50 | . 19 14 . 17 Largest 2 | . 2 2 . 2 Hottest 43 | . 40 40 . 43 Shots Fired 96 | . 38 28 . 30 Gun 96 | . 38 28 . 30 Cannon . | . . . . . Launcher . | . . . . . Special . | . . . . . Kinetic 96 | . 38 28 . 30 Thermal . | . . . . . Explosive . | . . . . . Electromagnetic . | . . . . . Robot Hit Streak 14 | . 14 9 . 13 Robot Miss Streak 4 | . 2 4 . 1 Penetration Max . | . . . . . Secondary Targets 7 | . 4 2 . 1 Max Gunslinging Chain 1 | . 1 1 . 1 Shots Hit Robots 72 | . 28 19 . 25 Core Hits 31 | . 13 9 . 9 Critical Kills . | . . . . . Critical Parts Destroyed . | . . . . . Critical Strikes . | . . . . . Melee Attacks . | . . . . . Impact . | . . . . . Slashing . | . . . . . Piercing . | . . . . . Sneak Attacks . | . . . . . Combat Hostiles . | . . . . . Follow-up Attacks . | . . . . . Damage Inflicted 826 | . 311 204 . 311 Guns 826 | . 311 204 . 311 Cannons . | . . . . . Explosions . | . . . . . Melee . | . . . . . Ramming . | . . . . . Kinetic 826 | . 311 204 . 311 Thermal . | . . . . . Explosive . | . . . . . Electromagnetic . | . . . . . Impact . | . . . . . Slashing . | . . . . . Piercing . | . . . . . Highest Corruption . | . . . . . Average Corruption . | . . . . . Corruption Purged . | . . . . . Corruption Blocked . | . . . . . Overload Shots . | . . . . . Overflow Damage . | . . . . . Projectiles . | . . . . . Explosions . | . . . . . Melee . | . . . . . Knockbacks . | . . . . . Impact . | . . . . . Kinetic . | . . . . . Secondary . | . . . . . Self-Inflicted Damage . | . . . . . Shots . | . . . . . Rammed . | . . . . . Targets Rammed . | . . . . . Kicked . | . . . . . Crushed . | . . . . . Highest Temperature 6 | . 4 6 . 5 Average Temperature 3 | . 2 4 . 5 Received Heat Transfer 108 | . 69 9 . 30 Siege Activations . | . . . . . Robots Corrupted . | . . . . . Combat Hostiles . | . . . . . Parts Fried . | . . . . . Impact Corruptions . | . . . . . Robots Melted . | . . . . . Combat Hostiles . | . . . . . Parts Melted . | . . . . . Heat Transferred . | . . . . . Parts Sabotaged . | . . . . . Parts Stolen . | . . . . . Parts Stripped . | . . . . . Power Chain Reactions . | . . . . . Alert | -11 -10 -10 -10 -9 ------- Run | Yrd Mat Min Exi Min Peak Influence 232 | . 200 232 . 40 Initial 26 | . . 26 . . Average 84 | . 80 129 . 35 Maximum Alert Level 1 | . 1 1 . . Low Security (%) 92 | 100 98 79 . 100 Level 1 7 | . 1 20 . . Level 2 . | . . . . . Level 3 . | . . . . . Level 4 . | . . . . . Level 5 . | . . . . . High Security . | . . . . . Max Security . | . . . . . Squads Dispatched . | . . . . . Investigation . | . . . . . Extermination . | . . . . . Reinforcement . | . . . . . Assault . | . . . . . Garrison . | . . . . . Intercept . | . . . . . Searches Triggered . | . . . . . Construction Impeded . | . . . . . Haulers Reinforced . | . . . . . Active Scanning Responses . | . . . . . Cargo Convoy Interrupts . | . . . . . Stealth | -11 -10 -10 -10 -9 --------- Run | Yrd Mat Min Exi Min Distress Signals 1 | . 1 . . . Communications Jammed . | . . . . . Distress Signals . | . . . . . Times Spotted 25 | . 11 8 . 6 Peak Tracking Total 4 | . 4 3 . 3 Tactical Retreats 1 | . . 1 . . Traps | -11 -10 -10 -10 -9 ------- Run | Yrd Mat Min Exi Min Traps Triggered . | . . . . . Indirectly . | . . . . . Trap Hack Attempts . | . . . . . Triggered . | . . . . . Disarmed . | . . . . . Reprogrammed . | . . . . . Reused . | . . . . . Traps Extracted . | . . . . . Installed . | . . . . . Triggered . | . . . . . Machines | -11 -10 -10 -10 -9 ---------- Run | Yrd Mat Min Exi Min Machines Disabled . | . . . . . Max in Single Turn . | . . . . . Machines Repaired . | . . . . . Machines Dismantled . | . . . . . Machines Sabotaged . | . . . . . Overloaded Fab Kills . | . . . . . Hacking | -11 -10 -10 -10 -9 --------- Run | Yrd Mat Min Exi Min Machines Accessed 8 | . 4 . 4 . Terminals 4 | . 4 . . . Fabricators . | . . . . . Repair Stations . | . . . . . Recycling Units . | . . . . . Scanalyzers . | . . . . . Garrison Access . | . . . . . Total Hacks 63 | . 14 . 49 . Successful 57 | . 8 . 49 . Failed 6 | . 6 . . . Catastrophic . | . . . . . Database Lockouts . | . . . . . Manual 1 | . . . 1 . Terminals 14 | . 14 . . . Fabricators . | . . . . . Repair Stations . | . . . . . Recycling Units . | . . . . . Scanalyzers . | . . . . . Garrison Access . | . . . . . Terminal Hacks 57 | . 8 . 49 . Record 53 | . 4 . 49 . Prototype ID Bank 1 | . 1 . . . Maintenance Status 1 | . 1 . . . Hauler Manifests 1 | . 1 . . . Zone Layout 1 | . 1 . . . Fabricator Hacks . | . . . . . Repair Station Hacks . | . . . . . Recycling Unit Hacks . | . . . . . Scanalyzer . | . . . . . Garrison Access Hacks . | . . . . . Unauthorized Hacks . | . . . . . Terminals . | . . . . . Fabricators . | . . . . . Repair Stations . | . . . . . Recycling Units . | . . . . . Scanalyzers . | . . . . . Garrison Access . | . . . . . Data Cores Recovered . | . . . . . Used . | . . . . . Hacking Detections 4 | . 4 . . . Full Trace Events . | . . . . . Feedback Events . | . . . . . Feedback Blocked . | . . . . . Robot Schematics Acquired . | . . . . . Robots Built . | . . . . . Authchips . | . . . . . Time . | . . . . . Total Robot Build Rating . | . . . . . Part Schematics Acquired . | . . . . . Parts Built . | . . . . . Authchips . | . . . . . Time . | . . . . . Total Part Build Rating . | . . . . . Parts Repaired . | . . . . . Time . | . . . . . Parts Recycled . | . . . . . Recycled Matter . | . . . . . Retrieved Matter . | . . . . . Retrieved Components . | . . . . . Parts Scanalyzed . | . . . . . Part Schematics Acquired . | . . . . . Parts Damaged . | . . . . . Bothacking | -11 -10 -10 -10 -9 ------------ Run | Yrd Mat Min Exi Min Used RIF Installer . | . . . . . Robots Hacked . | . . . . . Non-combat . | . . . . . Combat . | . . . . . Robot Hacks Applied . | . . . . . Relay Couplers Released . | . . . . . Fabnet Peak Effective % . | . . . . . Robots Rewired . | . . . . . Allies Hacked . | . . . . . Hacks Repelled . | . . . . . Allies | -11 -10 -10 -10 -9 -------- Run | Yrd Mat Min Exi Min Total Allies . | . . . . . Largest Group . | . . . . . Highest-Rated Group . | . . . . . Highest-Rated Ally . | . . . . . Total Orders . | . . . . . Ally Attacks . | . . . . . Total Damage . | . . . . . Kills . | . . . . . Allies Corrupted . | . . . . . Allies Melted . | . . . . . Intel | -11 -10 -10 -10 -9 ------- Run | Yrd Mat Min Exi Min Robot Analysis Total . | . . . . . Derelict Logs Recovered 1 | . . 1 . . Drone Launches . | . . . . . Drone Recoveries . | . . . . . Exploration | -11 -10 -10 -10 -9 ------------- Run | Yrd Mat Min Exi Min Turns Passed 2575 | 99 698 450 1151 177 Spaces Moved 1474 | 57 384 239 720 74 Core 8 | 8 . . . . Treads 1466 | 49 384 239 720 74 Legs . | . . . . . Wheels . | . . . . . Hover . | . . . . . Flight . | . . . . . Fastest Speed 50 | 50 160 160 160 160 Average Speed 159 | 144 160 160 160 160 Slowest Speed 160 | 160 160 160 160 160 Overloaded Moves . | . . . . . Propulsion Burnouts . | . . . . . Robots Hopped . | . . . . . Cave-ins Triggered . | . . . . . Exploration Rate (%) 45 | 5 56 49 92 23 Regions Visited 4 Branch Regions 3 Pre-discovered Areas 1 | . . . 1 . Known Exits Taken 3 | . 1 1 1 . Unknown Exits Taken 1 | 1 . . . . Scrap Searched 3 | . . 2 . 1 Spaces Dug . | . . . . . Terrain Destroyed . | . . . . . Melee . | . . . . . Projectile . | . . . . . AOE . | . . . . . Terrain Rammed . | . . . . . Walls Destroyed . | . . . . . Machines Disabled . | . . . . . Actions | -11 -10 -10 -10 -9 --------- Run | Yrd Mat Min Exi Min Total 1612 | 74 434 283 719 102 Wait 10 | . 6 2 . 2 Move 1470 | 56 383 238 719 74 Hop . | . . . . . Pick Up 42 | 12 15 14 . 1 Fast Attach . | . . . . . Attach 13 | 6 2 . . 5 Detach . | . . . . . Swap 7 | . 2 3 . 2 Drop 20 | . 7 12 . 1 Fire 50 | . 19 14 . 17 Melee . | . . . . . Ram . | . . . . . Kick . | . . . . . Crush . | . . . . . Escape Stasis . | . . . . . Rewire . | . . . . . Trap . | . . . . . Miscellaneous . | . . . . . Route ------- -11/Scrapyard -10/Materials (discovered 2 exits: *Mat / *Min) -10/Mines -10/Exiles (discovered 2 exits: *Min x2) -9/Mines History --------- Turn | Location | Event 5 | -11/Scrapyard | Discovered new exit (range 15) 100 | -11/Scrapyard | Entered Materials 313 | -10/Materials | Build established: Mutant 357 | -10/Materials | Discovered new exit (range 9) 369 | -10/Materials | Identified exit to Materials 533 | -10/Materials | Discovered new exit (range 8) 543 | -10/Materials | Identified exit to Mines 798 | -10/Materials | Entered Mines 978 | -10/Mines | Identified exit to Exiles 1240 | -10/Mines | Deemed a non-threat by the Exiles lab entrance 1248 | -10/Mines | Entered Exiles 1272 | -10/Exiles | Discovered new exit (range 14) 1292 | -10/Exiles | Identified exit to Mines 1328 | -10/Exiles | Met 8R-AWN 1352 | -10/Exiles | Met EX-HEX 1429 | -10/Exiles | Met EX-DEC 1487 | -10/Exiles | Met EX-BIN 1692 | -10/Exiles | Learned location of Zion (-7) 1789 | -10/Exiles | Visited The Gauntlet 2052 | -10/Exiles | Discovered exit to Mines (range 14) 2399 | -10/Exiles | Entered Mines 2537 | -9/Mines | Assembled infested the area 2542 | -9/Mines | Assisted by a Guerilla fighting off Assembled 2558 | -9/Mines | Core integrity fell below 50% 2569 | -9/Mines | Core integrity fell below 20% 2576 | -9/Mines | Destroyed by D-53 Grenadier with Mini Grenade Launcher Last Messages --------------- T-07 Excavator is excavating. ALERT: Infestation in the mines, dispatching Demolisher response squad. A derelict emerges from the shadows: "You need to get out of here! I've been tracking a group of Assembled to figure out where they're coming from, and they're closing on this area, come on!" PB-ZST(h) destroyed. The unstable cave ceiling collapses. Lgt. Treads destroyed. Assault Rifle destroyed. The unstable cave ceiling collapses. Ion Engine destroyed. The unstable cave ceiling collapses. D-53 Grenadier destroyed. Switching to secondary target: D-53 Grenadier. The unstable cave ceiling collapses. Assault Rifle destroyed. The unstable cave ceiling collapses. Map ----- +----------------------------------------------------+ | ?????##%!! ! %] #??????????????????????? | | ????##![[[ ##### #??????????????####????? | | ????# * *##???# #????????????## ##???? | | ????# =##????# #???????????## #???? | | ????## ##?????# ############# #???? | | ?????####??????# #???? | | ???????????????############# ####???? | | ???????????????????????????# ##??????? | | ???????????????????????????# #???????? | | ???????????????????######### ##??????? | | ??????????????? ###????? | | ?????????????????????# #### ##???? | | ??????????????????#### #??# #???? | | ?????????????????## u ##?## ##???? | | ?????????????????# t ##### ####????? | | ????????????????## #######??? | | ????????######### # | | ????????# ##### # | | ?????????# ##???# ######### | | ?????????# #### ##### ##???????? | | ???????????# % #????????? | | ???????????# # ### #????????? | | ???????????# d #? #?## ##????????? | | ???????????# ## #??####?????????? | | ???????????# # #???????????????? | | ???????????# @ # ????????????????? | | ???????????# ## ???????????????? | | ?????" #?##???????????????? | | ????"" ### ##?????????????????? | | ??? ???## ##?????????????????? | | ??? ???????# ###??????????????????? | | ????????????# ## ###????????????????????? | | ????????????# ?# #??????????????????????? | | ????????????# ?# #??????????????????????? | | ????????????#??# #??????????????????????? | | ???????????????#a#??????????????????????? | | ???????????????# #??????????????????????? | | ??????????????? #??????????????????????? | | ???????????????##???????????????????????? | | ????????????????????????????????????????? | | ????????????????????????????????????????? | | ????????????????????????????????????????? | | ????????????????????????????????????????? | | ????????????????????????????????????????? | | ????????????????????????????????????????? | | ????????????????????????????????????????? | | ????????????????????????????????????????? | | ????????????????????????????????????????? | | ????????????????????????????????????????? | | ????????????????????????????????????????? | +----------------------------------------------------+ Best States ------------- Heat Dissipation 25 Energy Generation 12 Energy Capacity 265 Matter Stores 300 Matter Capacity 300 Sight Range 16 Terrain Scan Density 10 Resistance: KI 20 Resistance: TH 20 Resistance: EX 20 Resistance: EM 20 Resistance: I 20 Resistance: S 20 Resistance: P 20 Evasion (%) 50 Recoil Reduction 2 Offensive Hacking 10 Item Schematics ----------------- None Robot Schematics ------------------ None Fabricated ------------ Nothing Alien Tech Used ----------------- None Achievements -------------- None Challenges ------------ None Game ------ Seed ShieldIntegrityDoublenader Manual? 0 Play Time 00:33:00 Cumulative 5.1 hours Start 2024.09.02 @ 22:10:06 End 2024.09.02 @ 22:57:35 Sessions 1 Manual Loads 0 Difficulty Adventurer Special Mode None Game No. 4 Rogue 0 Adventurer 4 Explorer 0 Win Type - Total 0 Types 0/0/0/0/0/0/0/0/0 Lore% 9 Gallery% 12 Achievement% 15 Wizard Run 0 Options --------- Layout 1 ASCII 0 Keyboard 0 Movement Numpad Keybinds 0 Fullscreen 1 Font 48/Smallcaps Map View 50x35 Zoom Use 0% Tactical HUD 0 Map Filters NONE Filters NONE Steam 1 RUN: 9ca26aff-9753-4419-b75b-2d6e1841beab